bitfinex/quotes_ETHUSD_20251124
["timestamp","ask_amount","ask_price","bid_price","bid_amount"]
[1763961375097,0.6824,2883.9,2882.7,0.165]
[1763961375398,0.6824,2883.9,2883.1,0.1]
[1763961375899,0.002,2884.3,2883.4,0.1]
[1763961376284,0.6824,2883.9,2883.0,0.1]
[1763961376488,0.6824,2883.9,2883.3,0.1]
[1763961377195,0.6824,2883.9,2882.9,6.58089085]
[1763961377196,0.6824,2883.9,2882.9,6.68089085]
[1763961377401,0.09896,2883.9,2882.9,7.41178994]
[1763961377598,4.32663,2885.2,2883.0,0.4631]
[1763961377797,0.90699264,2884.4,2882.7,0.165]
[1763961378004,7.73044,2884.1,2882.7,0.165]
[1763961378186,1.05399264,2884.4,2882.5,0.1916]
[1763961378387,0.147,2884.4,2883.1,0.1]
[1763961378898,0.147,2884.4,2883.0,0.5631]
[1763961379066,0.147,2884.4,2882.5,0.86884909]
[1763961379266,0.147,2884.4,2883.0,0.1]
[1763961379600,0.4873,2884.3,2883.0,0.1]
[1763961379914,2.064857,2884.2,2883.0,0.1]
[1763961380201,0.4873,2884.3,2883.2,0.1]
[1763961381004,0.4873,2884.3,2883.3,0.1]
[1763961381167,0.4873,2884.3,2882.7,0.5631]
[1763961381361,0.4873,2884.3,2883.0,0.1]
[1763961383203,7.755706,2884.2,2882.6,0.1]
[1763961383503,5.7528,2884.0,2882.6,0.1]
[1763961383997,0.4873,2883.9,2882.5,0.1916]
[1763961384380,0.4873,2883.9,2882.5,0.6547]
[1763961384589,2.320857,2883.8,2882.5,0.6547]
[1763961384806,2.320857,2883.8,2881.5,4.37837011]
[1763961384807,3.22784964,2883.8,2882.1,0.4631]
[1763961384968,0.7681157,2883.7,2882.1,0.5631]
[1763961385163,0.4873,2883.7,2882.1,0.5631]
[1763961385370,0.4873,2883.6,2882.1,0.5631]
[1763961385571,4.51944,2883.5,2881.7,7.04399085]
[1763961385772,4.51944,2883.5,2881.7,0.4631]
[1763961386099,0.4873,2883.4,2881.7,0.4631]
[1763961386305,0.4873,2883.4,2882.2,0.1]
[1763961387088,3.229761,2883.3,2882.2,0.1]
[1763961387289,0.3717061,2883.3,2882.1,0.1]
[1763961387520,0.4873,2883.2,2882.1,0.1916]
[1763961387688,0.4873,2883.2,2882.1,0.2916]
[1763961388526,3.46733994,2884.1,2882.1,0.2916]
[1763961388527,0.4873,2883.7,2882.3,6.58089085]
[1763961388723,0.4873,2883.7,2882.7,0.1]
[1763961389711,0.4873,2884.1,2882.7,0.5631]
[1763961389991,0.4873,2884.1,2883.1,0.1]
[1763961390413,0.4873,2884.1,2883.1,0.2916]
[1763961392807,0.4873,2884.1,2882.9,0.7547]
[1763961393327,0.4873,2884.1,2883.0,0.1]
[1763961393629,0.4873,2884.1,2882.9,0.7547]
[1763961393834,0.4873,2884.1,2882.9,0.2916]
[1763961394533,0.4873,2884.1,2883.2,0.1]
[1763961396341,0.4873,2884.1,2883.1,0.1]
[1763961396545,0.4873,2884.1,2883.0,0.4631]
[1763961397925,0.4873,2884.1,2883.0,0.5631]
[1763961398119,0.4752,2884.0,2882.7,0.2965]
[1763961398444,0.4752,2884.3,2883.0,0.1]
[1763961398618,0.4772,2884.6,2883.0,0.1]
[1763961398825,0.4772,2884.6,2883.4,0.1]
[1763961399430,0.002,2884.6,2883.8,0.1]
[1763961399624,0.002,2884.6,2884.0,0.1]
[1763961399956,0.4772,2884.6,2883.6,0.1]
[1763961400158,0.4772,2884.6,2883.4,0.4783]
[1763961400521,0.4772,2884.6,2883.5,0.1]
[1763961400757,0.002,2884.6,2883.8,0.1]
[1763961401258,0.002,2884.6,2883.8,0.5783]
[1763961401823,0.002,2884.6,2884.5,0.1965]
[1763961402024,0.002,2884.6,2884.5,0.6653]
[1763961402224,0.002,2884.6,2883.6,6.58089085]
[1763961402225,0.002,2884.6,2884.1,0.1965]
[1763961402433,0.002,2884.6,2884.2,0.1]
[1763961402633,0.002,2884.6,2884.2,0.5783]
[1763961403057,0.002,2884.6,2884.5,0.4688]
[1763961403259,0.002,2884.9,2884.8,0.1]
[1763961403428,0.002,2884.9,2884.8,0.5688]
[1763961403626,0.002,2884.9,2884.8,1.0471]
[1763961405360,0.002,2884.9,2884.8,0.4688]
[1763961405956,0.002,2884.9,2884.1,0.1965]
[1763961405957,0.002,2884.9,2884.5,0.5629]
[1763961408162,0.002,2884.9,2884.8,0.5664]
[1763961408763,0.002,2884.9,2884.1,0.1965]
[1763961408976,0.002,2884.9,2884.6,0.1]
[1763961409304,0.002,2884.9,2884.8,0.4664]
[1763961409596,0.002,2884.9,2884.8,0.5664]
[1763961409743,0.002,2884.9,2884.8,1.0293]
[1763961409938,0.002,2884.9,2884.8,0.4664]
[1763961410175,0.002,2884.9,2884.4,0.4629]
[1763961410373,0.002,2884.9,2884.8,0.4664]
[1763961410574,0.002,2884.9,2884.8,0.5664]
[1763961410778,0.002,2884.9,2884.8,1.0293]
[1763961411844,0.002,2884.9,2884.8,5.60342604]
[1763961412046,0.002,2885.2,2884.8,9.20087085]
[1763961412276,0.002,2885.2,2885.1,7.33199085]
[1763961412479,0.002,2885.5,2885.4,0.1]
[1763961412691,0.4804,2887.3,2885.4,0.4664]
[1763961412859,0.1951,2886.6,2885.6,0.1]
[1763961413058,0.1951,2886.6,2885.6,0.76101909]
[1763961413392,0.4804,2886.5,2885.5,0.1]
[1763961413596,0.4804,2886.5,2885.3,0.1]
[1763961413778,2.2985,2886.4,2885.2,0.1]
[1763961413945,0.4804,2886.5,2885.2,0.1]
[1763961414144,0.4804,2886.5,2884.7,0.231]
[1763961414145,1.38739264,2886.4,2885.0,0.1]
[1763961414369,0.74163596,2886.3,2885.0,0.1]
[1763961414566,0.4804,2886.3,2885.0,0.1]
[1763961414766,0.4804,2886.2,2885.0,0.1]
[1763961415169,0.4804,2886.2,2885.0,0.5629]
[1763961417688,0.4804,2886.2,2885.2,0.1]
[1763961417896,0.4804,2886.2,2885.0,0.4629]
[1763961417897,0.1951,2886.6,2885.5,0.1]
[1763961418080,0.6755,2886.6,2885.5,0.1]
[1763961418395,0.6755,2886.6,2885.5,0.5629]
[1763961418551,0.4804,2886.5,2885.1,0.4629]
[1763961418756,0.4804,2886.5,2885.3,0.1]
[1763961418959,3.681403,2886.4,2885.0,0.1]
[1763961419264,2.631063,2886.4,2885.0,0.1]
[1763961419452,1.38739264,2886.3,2884.9,0.1]
[1763961419860,0.4804,2886.2,2884.9,0.1]
[1763961420806,0.1951,2886.6,2884.7,0.4629]
[1763961420807,0.1951,2886.6,2885.0,0.4629]
[1763961421099,0.4804,2887.7,2886.6,0.1]
[1763961421256,0.4804,2887.7,2886.1,0.1847]
[1763961421257,0.4804,2888.1,2886.9,0.1]
[1763961421585,0.4804,2888.1,2887.2,0.1]
[1763961421791,0.4804,2888.6,2887.5,0.1]
[1763961422349,0.147,2887.6,2886.8,0.1]
[1763961422554,0.147,2887.6,2886.3,0.4629]
[1763961422989,0.147,2887.6,2886.8,0.1]
[1763961423354,0.6274,2887.6,2886.3,0.4629]
[1763961423595,0.6274,2887.6,2886.1,0.1847]
[1763961423759,0.4804,2887.5,2886.1,0.1847]
[1763961423962,3.37827764,2887.4,2885.4,0.4629]
[1763961424163,8.321165,2887.1,2885.3,0.1]
[1763961424358,0.90699264,2887.0,2885.3,0.1]
[1763961424563,0.90699264,2886.8,2885.0,0.6476]
[1763961424874,0.90699264,2886.4,2885.0,0.2847]
[1763961425087,0.6755,2886.9,2885.0,0.2847]
[1763961425088,0.4804,2886.8,2885.0,0.2847]
[1763961425270,2.286202,2886.5,2885.0,0.2847]
[1763961425476,0.31931946,2886.4,2885.0,0.2847]
[1763961425674,0.1951,2886.9,2885.0,0.2847]
[1763961425675,0.4804,2886.5,2885.0,0.2847]
[1763961425976,3.328001,2886.6,2885.0,0.2847]
[1763961426171,3.328001,2886.6,2885.0,0.1847]
[1763961426391,0.4804,2886.5,2885.0,0.1847]
[1763961427099,0.4804,2886.5,2885.5,0.101]
[1763961427462,0.4709,2886.6,2885.5,0.001]
[1763961428276,0.0985,2885.6,2885.5,0.001]
[1763961428476,0.0985,2886.0,2885.5,0.001]
[1763961429906,0.4709,2886.8,2885.6,0.4608]
[1763961430269,0.4709,2886.8,2885.6,0.5608]
[1763961430465,0.1951,2886.9,2885.6,0.5608]
[1763961430811,0.1951,2886.9,2886.1,0.1]
[1763961430966,0.4709,2886.8,2885.7,0.4608]
[1763961431164,0.4709,2886.8,2885.5,0.001]
[1763961431378,0.4709,2886.8,2885.6,0.4608]
[1763961431579,1.05599264,2887.6,2885.6,0.4608]
[1763961431793,0.4709,2887.5,2886.1,0.1]
[1763961432006,2.044525,2887.4,2885.6,0.4608]
[1763961432219,4.274246,2887.2,2885.7,0.4608]
[1763961432373,0.7224425,2887.3,2885.7,0.4608]
[1763961432574,0.4709,2887.2,2885.7,0.5608]
[1763961432774,0.4709,2887.5,2886.1,0.1]
[1763961433122,0.149,2887.6,2885.8,0.03465243]
[1763961433409,0.002,2887.6,2887.0,0.1]
[1763961433571,0.002,2887.6,2887.3,0.1]
[1763961433972,0.4729,2887.6,2886.8,0.1]
[1763961434196,0.002,2887.6,2886.8,0.1]
[1763961435133,0.002,2887.6,2886.2,0.6579]
[1763961435134,0.4729,2887.6,2886.2,0.6579]
[1763961435404,0.4729,2887.6,2886.4,0.1]
[1763961436381,0.4729,2887.6,2885.8,0.1]
[1763961436581,0.4729,2887.6,2885.7,0.4915]
[1763961436582,0.4729,2887.6,2886.1,0.1816]
[1763961436984,0.4729,2887.6,2886.2,0.4915]
[1763961437514,2.108097,2887.5,2886.1,0.1816]
[1763961437677,0.2580997,2887.4,2886.1,0.1816]
[1763961437878,0.2580997,2887.4,2886.4,0.1]
[1763961438079,0.002,2887.6,2886.4,0.1]
[1763961438274,0.4654,2887.3,2886.2,0.5915]
[1763961438480,0.4654,2887.3,2886.3,0.1]
[1763961438883,0.002,2887.6,2886.7,0.1]
[1763961439385,0.1711,2886.8,2886.1,0.2816]
[1763961439834,0.1711,2886.9,2886.1,0.2816]
[1763961440127,0.1711,2886.9,2886.1,0.7731]
[1763961440337,0.1711,2886.9,2886.1,0.2816]
[1763961440503,0.002,2887.6,2886.2,0.4915]
[1763961440706,0.002,2887.6,2886.4,0.1]
[1763961441022,0.002,2887.6,2886.7,0.1]
[1763961442486,0.4654,2887.5,2886.4,0.1]
[1763961442797,0.002,2887.6,2886.6,0.1]
[1763961443430,0.002,2887.6,2886.9,0.1]
[1763961443590,0.002,2887.6,2886.7,0.03464163]
[1763961443791,0.002,2887.6,2886.1,0.1816]
[1763961443792,0.002,2887.6,2886.9,0.1]
[1763961443995,0.002,2887.6,2886.5,0.1]
[1763961443996,0.4674,2887.6,2886.5,0.1]
[1763961444415,0.4674,2887.6,2886.2,0.5915]
[1763961444613,0.4674,2887.6,2886.2,0.4915]
[1763961444932,0.002,2887.6,2886.7,0.1]
[1763961445332,0.002,2887.6,2886.7,0.5915]
[1763961445931,0.002,2887.6,2886.9,0.1]
[1763961446745,0.002,2887.6,2886.9,0.4915]
[1763961446940,0.002,2887.6,2887.3,0.1]
[1763961447134,0.002,2887.6,2886.9,0.4915]
[1763961447644,0.002,2887.6,2887.2,0.1]
[1763961448039,0.002,2887.6,2887.0,0.1]
[1763961448541,0.002,2887.6,2886.9,0.4915]
[1763961448742,0.002,2887.6,2887.0,0.1]
[1763961449461,0.002,2887.6,2886.1,0.2816]
[1763961449462,0.0922,2887.5,2886.1,0.2816]
[1763961449662,0.002,2887.6,2886.4,0.4915]
[1763961449861,0.002,2887.6,2886.8,0.1]
[1763961450628,0.4674,2887.6,2886.7,0.1]
[1763961450924,0.4674,2887.6,2886.4,0.1]
[1763961451124,0.4674,2887.6,2886.1,0.1816]
[1763961451342,0.002,2887.6,2886.4,0.4915]
[1763961451542,0.002,2887.6,2886.7,0.1]
[1763961451759,0.4654,2887.5,2886.4,0.4915]
[1763961451959,0.4654,2887.5,2886.1,0.2816]
[1763961452664,0.4654,2887.5,2886.2,0.5915]
[1763961453063,0.4654,2887.5,2886.1,0.1816]
[1763961453240,0.2549,2886.2,2885.5,0.001]
[1763961453563,0.1711,2886.2,2885.5,0.001]
[1763961453765,0.4654,2886.1,2885.5,0.001]
[1763961453977,0.1711,2886.2,2885.5,0.001]
[1763961454365,0.4654,2886.1,2885.5,0.001]
[1763961455645,5.953205,2886.0,2885.5,0.001]
[1763961455972,0.6418605,2885.9,2885.5,0.001]
[1763961456144,0.4654,2885.8,2885.5,0.001]
[1763961458276,17.081084,2885.7,2885.5,0.001]
[1763961458477,10.21235364,2885.6,2885.2,0.001]
[1763961458646,21.01055931,2885.3,2885.2,0.001]
[1763961458840,21.01055931,2885.3,2883.8,0.193]
[1763961458841,0.90699264,2885.2,2883.8,0.193]
[1763961459074,5.448263,2885.0,2883.8,0.193]
[1763961459278,2.67915519,2885.1,2883.8,0.193]
[1763961459479,0.4874,2885.0,2883.8,0.193]
[1763961459857,0.4874,2885.5,2884.3,0.4651]
[1763961460253,0.90699264,2885.9,2883.8,0.193]
[1763961460254,0.4874,2885.9,2884.6,0.4651]
[1763961460466,0.4874,2885.9,2884.9,0.4661]
[1763961460670,2.040694,2886.1,2884.9,0.4661]
[1763961460847,0.2211794,2886.0,2884.9,0.4661]
[1763961461043,0.4874,2886.1,2884.9,0.4661]
[1763961461271,0.1711,2886.2,2885.0,0.03466204]
[1763961461478,0.1711,2886.2,2885.1,0.7581]
[1763961461685,0.6585,2886.2,2885.1,0.7581]
[1763961461880,0.6585,2886.2,2885.1,0.6581]
[1763961462092,0.90699264,2886.0,2884.9,0.001]
[1763961462388,0.4874,2886.1,2884.9,0.001]
[1763961462598,0.90699264,2885.4,2884.9,0.001]
[1763961462796,0.7565013,2885.3,2884.9,0.001]
[1763961462996,1.2439013,2885.3,2884.9,0.001]
[1763961463172,1.39439264,2885.2,2884.9,0.001]
[1763961463373,2.882401,2885.1,2884.9,0.001]
[1763961463588,1.39439264,2885.1,2885.0,0.001]
[1763961463798,1.12208203,2885.1,2885.0,0.001]
[1763961463967,6.98421703,2885.1,2885.0,0.001]
[1763961464172,11.03952203,2885.1,2885.0,0.001]
[1763961464484,4.19948203,2885.1,2885.0,0.001]
[1763961464892,1.60948203,2885.1,2885.0,0.001]
[1763961465089,4.01139803,2885.1,2885.0,0.001]
[1763961465289,5.06968903,2885.1,2885.0,0.001]
[1763961465687,4.63995403,2885.1,2885.0,0.001]
[1763961466200,3.74375403,2885.1,2885.0,0.001]
[1763961466781,21.649384,2884.9,2884.8,0.001]
[1763961467111,0.90699264,2884.6,2884.5,0.001]
[1763961467409,13.08869564,2884.6,2884.5,0.001]
[1763961467595,13.58789564,2884.6,2884.5,0.001]
[1763961467792,2.980473,2884.6,2884.5,0.001]
[1763961467991,3.82729964,2884.6,2884.5,0.001]
[1763961468198,4.1794666,2884.6,2884.5,0.001]
[1763961468382,3.9072356,2884.6,2884.5,0.001]
[1763961468574,3.4080356,2884.6,2884.5,0.001]
[1763961468773,1.7889226,2884.6,2884.5,0.001]
[1763961469087,3.64036964,2884.6,2884.5,0.001]
[1763961469472,5.32511864,2884.6,2884.5,0.001]
[1763961470518,20.08641664,2884.6,2884.5,0.001]
[1763961470868,0.90699264,2884.5,2883.1,0.1915]
[1763961471075,0.90699264,2884.1,2883.1,0.1915]
[1763961471269,1.41040776,2884.0,2883.1,0.1915]
[1763961471504,0.4992,2884.4,2882.7,0.4528]
[1763961471505,0.90699264,2884.2,2882.7,0.4528]
[1763961471675,0.634,2884.1,2882.7,0.4528]
[1763961472094,6.903606,2883.9,2882.7,0.4528]
[1763961472498,0.1348,2884.1,2882.7,0.001]
[1763961472499,30.90699264,2883.6,2882.7,0.001]
[1763961472738,22.23629564,2883.1,2882.7,0.001]
[1763961472910,22.00142764,2883.1,2882.7,0.001]
[1763961473078,15.67406764,2883.1,2882.7,0.001]
[1763961473405,0.4992,2883.1,2882.7,0.001]
[1763961473607,0.4992,2883.4,2882.7,0.001]
[1763961473821,0.634,2883.8,2882.7,0.001]
[1763961474041,0.90699264,2883.6,2882.7,0.001]
[1763961474344,0.9547013,2883.8,2883.1,0.1915]
[1763961474700,0.90699264,2883.6,2882.7,0.001]
[1763961474896,0.90699264,2883.7,2882.7,0.001]
[1763961475229,0.1348,2883.8,2883.1,0.1915]
[1763961475591,0.1348,2884.1,2883.1,0.1915]
[1763961475795,0.1348,2884.1,2883.1,0.6433]
[1763961476234,3.031106,2884.0,2882.7,0.001]
[1763961476421,5.654009,2883.8,2882.7,0.001]
[1763961476827,5.654804,2883.6,2882.7,0.001]
[1763961477036,0.90699264,2883.6,2882.7,0.001]
[1763961477943,0.4992,2883.6,2882.7,0.001]
[1763961478149,3.493787,2883.4,2882.7,0.001]
[1763961478441,0.90699264,2883.2,2882.7,0.001]
[1763961478641,4.16478864,2883.1,2882.7,0.001]
[1763961479010,1.40619264,2883.1,2882.7,0.001]
[1763961479316,1.45639264,2883.1,2882.7,0.001]
[1763961479738,6.01358564,2883.1,2882.7,0.001]
[1763961480037,6.6149442,2883.1,2882.7,0.001]
[1763961480407,26.4876072,2883.1,2882.7,0.001]
[1763961480628,22.2351262,2883.1,2882.7,0.001]
[1763961481355,0.90699264,2883.0,2882.7,0.001]
[1763961481647,0.0502,2883.1,2882.7,0.001]
[1763961481856,0.90699264,2883.0,2882.7,0.001]
[1763961482022,0.1529,2882.8,2882.7,0.001]
[1763961482413,0.90699264,2883.0,2882.7,0.001]
[1763961483312,0.1529,2883.2,2882.7,0.001]
[1763961483508,0.1529,2882.8,2882.7,0.001]
[1763961483813,0.1529,2883.2,2882.7,0.001]
[1763961484027,0.90699264,2882.8,2882.7,0.001]
[1763961484228,0.66087166,2882.8,2882.7,0.001]
[1763961484468,0.71107166,2882.8,2882.7,0.001]
[1763961484628,14.61249111,2882.8,2882.7,0.001]
[1763961485030,3.99047564,2882.8,2882.7,0.001]
[1763961485246,0.90699264,2882.8,2882.7,0.001]
[1763961485833,0.90699264,2882.8,2882.7,0.4796]
[1763961486337,0.90699264,2882.8,2882.7,0.001]
[1763961486537,4.06724964,2882.8,2882.7,0.001]
[1763961487344,4.4892646,2882.8,2882.7,0.001]
[1763961487638,4.9592646,2882.8,2882.7,0.001]
[1763961487834,11.55106107,2882.8,2882.7,0.001]
[1763961488374,0.90699264,2882.8,2882.7,0.001]
[1763961488534,0.1529,2883.7,2882.7,0.9358]
[1763961488731,0.1348,2884.1,2882.8,0.4747]
[1763961489144,7.19659647,2884.1,2882.8,0.4747]
[1763961489559,0.90699264,2884.0,2882.8,0.4747]
[1763961489768,0.90699264,2883.8,2882.8,0.4747]
[1763961489973,2.400031,2883.8,2882.8,0.4747]
[1763961490162,2.229275,2883.8,2882.8,0.4747]
[1763961490334,0.81035891,2883.9,2882.8,0.4747]
[1763961490772,6.332551,2883.8,2882.8,0.4747]
[1763961490947,0.81035891,2883.9,2882.8,0.4747]
[1763961490948,0.71429099,2883.7,2882.8,0.4747]
[1763961491151,0.81035891,2883.9,2882.8,0.4747]
[1763961491350,2.406719,2884.0,2882.8,0.4747]
[1763961491695,0.90699264,2883.8,2882.8,0.4747]
[1763961491840,6.59379647,2884.5,2882.9,0.1]
[1763961492040,5.384619,2884.4,2882.7,0.001]
[1763961492260,5.50896164,2884.0,2883.0,0.67]
[1763961492462,4.095684,2883.8,2883.0,0.1953]
[1763961492681,2.063232,2883.8,2883.0,0.1953]
[1763961493743,1.34487581,2883.9,2883.0,0.1953]
[1763961494170,2.770538,2883.8,2883.0,0.1953]
[1763961494357,2.045482,2883.8,2883.0,0.1953]
[1763961494567,0.42973505,2883.8,2883.0,0.1953]
[1763961495080,3.40801,2883.8,2883.0,0.1953]
[1763961495477,6.59179647,2883.3,2882.7,0.001]
[1763961495664,0.1522,2882.8,2882.7,0.001]
[1763961495865,4.444238,2882.8,2882.7,0.001]
[1763961496180,6.12225409,2882.8,2882.7,0.001]
[1763961496379,4.79937709,2882.8,2882.7,0.001]
[1763961496677,7.24772336,2882.8,2882.7,0.001]
[1763961496885,5.07794236,2882.8,2882.7,0.001]
[1763961497046,24.05740364,2882.8,2882.7,0.001]
[1763961497644,17.737492,2882.6,2882.4,0.001]
[1763961497858,21.26211911,2882.5,2882.4,0.001]
[1763961498085,23.43533102,2882.5,2882.4,0.001]
[1763961498245,23.90533102,2882.5,2882.4,0.001]
[1763961498449,12.87618202,2882.5,2882.4,0.001]
[1763961498652,7.49958911,2882.5,2882.4,0.001]
[1763961498850,11.03000411,2882.5,2882.4,0.001]
[1763961499094,11.50000411,2882.5,2882.4,0.001]
[1763961499296,9.85641011,2882.5,2882.4,0.001]
[1763961499475,10.32641011,2882.5,2882.4,0.001]
[1763961499802,11.70594814,2882.5,2882.4,0.001]
[1763961499995,15.70631414,2882.5,2882.4,0.001]
[1763961500203,12.70919214,2882.5,2882.4,0.001]
[1763961500975,4.95309867,2882.5,2882.4,0.001]
[1763961501207,2.28733067,2882.5,2882.4,0.001]
[1763961501411,0.90699264,2882.5,2882.4,0.001]
[1763961501607,3.25505964,2882.5,2882.4,0.001]
[1763961501788,3.80115964,2882.5,2882.4,0.001]
[1763961501983,9.09370364,2882.5,2882.4,0.001]
[1763961502186,7.51579464,2882.5,2882.4,0.001]
[1763961502412,8.8134741,2882.5,2882.4,0.001]
[1763961502711,12.71540396,2882.5,2882.4,0.001]
[1763961502898,2.63739121,2882.5,2882.4,0.001]
[1763961503098,16.66761075,2882.5,2882.4,0.001]
[1763961503411,15.71131775,2882.5,2882.4,0.001]
[1763961503616,19.1805285,2882.5,2882.4,0.001]
[1763961503799,0.90699264,2882.4,2882.1,0.001]
[1763961504110,7.49878911,2882.2,2882.1,0.001]
[1763961504314,9.66486511,2882.2,2882.1,0.001]
[1763961505012,10.73490811,2882.2,2882.1,0.001]
[1763961505385,10.93003711,2882.2,2882.1,0.001]
[1763961505688,11.70082211,2882.2,2882.1,0.001]
[1763961505889,8.74887132,2882.2,2882.1,0.001]
[1763961506086,8.66887132,2882.2,2882.1,0.001]
[1763961506282,10.99160232,2882.2,2882.1,0.001]
[1763961507022,11.80721932,2882.2,2882.1,0.001]
[1763961507628,12.23993843,2882.2,2882.1,0.001]
[1763961507837,19.39104143,2882.2,2882.1,0.001]
[1763961508045,22.86061328,2882.2,2882.1,0.001]
[1763961508398,19.39104143,2882.2,2882.1,0.001]
[1763961508829,35.15506928,2882.2,2882.1,0.001]
[1763961509257,31.68549743,2882.2,2882.1,0.001]
[1763961509756,28.43542964,2882.1,2881.8,0.001]
[1763961509910,30.91169264,2882.0,2881.8,0.001]
[1763961510114,23.78208464,2881.9,2881.8,0.001]
[1763961510418,19.66691264,2881.9,2881.8,0.001]
[1763961510622,0.90699264,2881.9,2881.8,0.001]
[1763961511028,0.90699264,2881.9,2881.8,0.9358]
[1763961511330,0.90699264,2881.9,2881.8,0.4611]
[1763961511529,6.59179647,2882.6,2881.8,0.9358]
[1763961511730,0.002,2883.0,2882.7,0.1953]
[1763961512143,0.002,2883.0,2882.4,0.67]
[1763961512144,2.466407,2882.7,2882.4,0.67]
[1763961512326,2.258,2882.7,2882.4,0.1953]
[1763961512513,2.858,2882.8,2882.4,0.1953]
[1763961512710,2.858,2882.8,2882.3,0.1953]
[1763961513023,0.90699264,2882.8,2882.3,0.1953]
[1763961513232,2.572268,2882.8,2882.4,0.4747]
[1763961513620,0.90699264,2882.9,2882.4,0.4747]
[1763961515243,5.87104864,2882.4,2881.8,0.001]
[1763961515443,5.87104864,2882.4,2881.8,0.4757]
[1763961515444,0.90699264,2882.4,2881.8,0.4757]
[1763961515645,2.879413,2882.7,2882.3,0.6554]
[1763961515965,2.879413,2882.7,2882.3,0.1953]
[1763961516256,0.98619264,2882.4,2881.8,0.4757]
[1763961516460,1.79099155,2882.4,2881.8,0.4757]
[1763961516857,1.71179155,2882.4,2881.8,0.4757]
[1763961517658,3.768293,2882.3,2881.8,0.4757]
[1763961517903,0.80479891,2882.4,2881.8,0.4757]
[1763961518040,0.90699264,2882.6,2881.8,0.4757]
[1763961518230,4.550406,2882.3,2881.8,0.4757]
[1763961518561,0.90699264,2882.4,2881.8,0.4757]
[1763961518758,5.791406,2882.5,2881.8,0.4757]
[1763961518937,2.737406,2882.3,2881.8,0.4757]
[1763961519141,0.36443986,2882.3,2881.8,0.4757]
[1763961519462,0.90699264,2882.6,2882.2,0.694]
[1763961519463,0.002,2882.4,2882.2,0.694]
[1763961519770,0.002,2882.4,2882.2,0.1973]
[1763961519967,0.002,2882.4,2882.3,0.9577]
[1763961520628,0.002,2882.4,2882.0,0.461]
[1763961520829,0.002,2882.4,2882.1,0.1973]
[1763961521256,0.002,2882.4,2882.1,0.6583]
[1763961521666,0.002,2882.4,2882.3,0.4967]
[1763961521874,0.002,2882.4,2882.1,0.1973]
[1763961522173,0.002,2882.4,2881.8,0.001]
[1763961522377,0.90699264,2882.2,2881.8,0.001]
[1763961522572,0.74987891,2882.1,2881.8,0.001]
[1763961522735,7.58718911,2881.9,2881.8,0.001]
[1763961522941,9.88028511,2881.9,2881.8,0.001]
[1763961523185,7.49878911,2881.9,2881.8,0.001]
[1763961523336,16.08646611,2881.9,2881.8,0.001]
[1763961523545,18.22340061,2881.9,2881.8,0.001]
[1763961524182,14.28276161,2881.9,2881.8,0.001]
[1763961524385,14.69179261,2881.9,2881.8,0.001]
[1763961524607,15.14149261,2881.9,2881.8,0.001]
[1763961525069,3.21559,2881.7,2881.6,0.001]
[1763961525460,7.30694327,2881.7,2881.6,0.001]
[1763961525570,3.19061527,2881.7,2881.6,0.001]
[1763961525767,0.002,2882.4,2881.6,0.4976]
[1763961525967,0.002,2882.4,2881.7,0.4966]
[1763961526392,2.228671,2882.3,2881.7,0.4966]
[1763961526699,2.228671,2882.3,2881.6,0.4578]
[1763961526700,0.90699264,2882.1,2881.6,0.001]
[1763961527899,0.90699264,2881.9,2881.6,0.001]
[1763961528102,0.37763136,2881.8,2881.6,0.001]
[1763961528281,2.168709,2882.0,2881.6,0.001]
[1763961529222,0.90699264,2881.7,2881.6,0.001]
[1763961529505,3.19679864,2881.7,2881.6,0.001]
[1763961529672,3.25469864,2881.7,2881.6,0.001]
[1763961530184,6.60216264,2881.7,2881.6,0.001]
[1763961530575,4.33090955,2881.7,2881.6,0.001]
[1763961530817,3.01925964,2881.7,2881.6,0.001]
[1763961531019,3.25125964,2881.7,2881.6,0.001]
[1763961531496,0.90699264,2881.7,2881.6,0.001]
[1763961531703,7.60783564,2881.7,2881.6,0.001]
[1763961532076,14.28983211,2881.7,2881.6,0.001]
[1763961532274,15.22957587,2881.7,2881.6,0.001]
[1763961532616,21.38047987,2881.7,2881.6,0.001]
[1763961532803,21.47067987,2881.7,2881.6,0.001]
[1763961533011,14.35364087,2881.7,2881.6,0.001]
[1763961533215,12.50577287,2881.7,2881.6,0.001]
[1763961533399,12.04687287,2881.7,2881.6,0.001]
[1763961533605,2.7262594,2881.7,2881.6,0.001]
[1763961533927,0.90699264,2881.7,2881.6,0.001]
[1763961534508,0.90699264,2881.7,2881.6,0.4976]
[1763961534816,22.603541,2882.3,2881.6,0.9544]
[1763961535023,0.90699264,2882.2,2881.6,0.4976]
[1763961535205,2.35105336,2882.1,2881.7,0.4568]
[1763961535400,24.14772,2882.3,2881.7,0.4568]
[1763961536435,22.507158,2882.3,2881.7,0.4568]
[1763961536633,22.120528,2882.3,2881.7,0.4568]
[1763961536835,22.100298,2882.1,2881.7,0.4568]
[1763961537136,0.002,2881.8,2881.7,0.4568]